fUST/lending_fUST_20240122
["ID","MTS","AMOUNT","RATE_DAILY","PERIOD"]
[312456202,1705897839822,-211.43,0.00028767,2]
[312456203,1705897839832,-445.675978,0.00028767,2]
[312456204,1705897839841,-172.373955,0.00028767,2]
[312456205,1705897839850,-286.92173556,0.00028795,2]
[312456206,1705897839861,-158.96191588,0.00028795,2]
[312456207,1705897839870,-175.16804152,0.00028795,2]
[312456208,1705897839879,-174.866365,0.00028795,2]
[312456209,1705897839889,-309.47389438,0.00028795,2]
[312456211,1705897839898,-226.39153408,0.00028795,2]
[312456212,1705897839907,-745.50304814,0.00028795,2]
[312456213,1705897839916,-199.18550125,0.00028796,2]
[312456214,1705897839925,-2029.97349516,0.00028797,2]
[312456215,1705897839934,-245.98389406,0.00028797,2]
[312456216,1705897839943,-261.70109327,0.00028797,2]
[312456217,1705897839953,-588.10945487,0.00028798,2]
[312456218,1705897839962,-156.67577192,0.00028798,2]
[312456219,1705897839971,-241.18033109,0.00028798,2]
[312456220,1705897839980,-197.11309331,0.00028798,2]
[312456221,1705897839990,-154.97621738,0.00028798,2]
[312456222,1705897840000,-389.82761525,0.000289,2]
[312456224,1705897840009,-261.58936724,0.00029,2]
[312456225,1705897840019,-600.0,0.00029,2]
[312456226,1705897840028,-156.31079972,0.00029,10]
[312456227,1705897840038,-1880.79357717,0.00029,2]
[312456228,1705897840047,-154.86062544,0.00029,7]
[312456229,1705897840056,-172.61810537,0.00029,2]
[312456230,1705897840065,-310.23933201,0.00029,2]
[312456231,1705897840074,-620.53649831,0.00029106,2]
[312456232,1705897840083,-151.0,0.00029212,2]
[312456233,1705897840093,-620.00431154,0.0002937,2]
[312456234,1705897840102,-875.56650803,0.00029399,2]
[312456235,1705897840112,-150.84915085,0.00029479,4]
[312456236,1705897840122,-200.0,0.000295,4]
[312456237,1705897840273,-477.23952549,0.000295,2]
[312456238,1705897840301,-1022.76047451,0.000295,2]
[312456239,1705897840310,-445.675978,0.00029648,2]
[312456240,1705897840320,-150.88329784,0.000297,2]
[312456241,1705897840329,-150.88329784,0.00029728,2]
[312456242,1705897840339,-157.77679299,0.00029781,2]
[312456243,1705897840350,-151.0,0.00029793,2]
[312456244,1705897840360,-175.0,0.00029848,2]
[312456245,1705897840370,-2734.44211356,0.00029848,2]
[312456246,1705897840380,-155.65245317,0.00029848,2]
[312456247,1705897840389,-150.88329784,0.00029935,2]
[312456248,1705897840398,-157.25543227,0.00029968,2]
[312456249,1705897840407,-464.67563146,0.0003,2]
[312456250,1705897840416,-686.79918076,0.0003,4]
[312456251,1705897840425,-283.25593542,0.0003,3]
[312456252,1705897840434,-244.14912804,0.0003,4]
[312456253,1705897840443,-154.86062544,0.0003,4]
[312456254,1705897840453,-1200.0,0.0003,4]
[312456255,1705897840461,-657.40715545,0.0003,3]
[312456256,1705897840471,-2371.37507479,0.0003,2]
[312456257,1705897840480,-336.05595657,0.0003,4]
[312456258,1705897840491,-560.48837219,0.0003,6]
[312456259,1705897840500,-154.86062544,0.0003,2]
[312456260,1705897840509,-183.0,0.0003,2]
[312456261,1705897840518,-150.88329784,0.00030046,7]
[312456262,1705897840527,-150.84915085,0.00030081,2]
[312456263,1705897840536,-153.0,0.00030137,2]
[312456264,1705897840546,-199.1966855,0.00030137,2]
[312456265,1705897840555,-153.0,0.00030137,2]
[312456266,1705897840565,-307.5721256,0.00030137,2]
[312456267,1705897840574,-153.0,0.00030137,2]
[312456268,1705897840584,-199.1966855,0.00030137,2]
[312456269,1705897840593,-199.1966855,0.00030137,2]
[312456270,1705897840602,-153.0,0.00030137,2]
[312456271,1705897840611,-153.0,0.00030137,2]
[312456272,1705897840620,-153.0,0.00030137,2]
[312456273,1705897840630,-153.0,0.00030137,2]
[312456274,1705897840640,-153.0,0.00030137,2]
[312456275,1705897840649,-153.0,0.00030137,2]
[312456276,1705897840659,-153.0,0.00030137,2]
[312456277,1705897840669,-153.0,0.00030137,2]
[312456278,1705897840680,-153.0,0.00030137,2]
[312456280,1705897840690,-153.0,0.00030137,2]
[312456281,1705897840700,-153.0,0.00030137,2]
[312456282,1705897840710,-153.0,0.00030137,2]
[312456283,1705897840719,-153.0,0.00030137,2]
[312456284,1705897840729,-153.0,0.00030137,2]
[312456285,1705897840739,-199.1433421,0.00030137,2]
[312456286,1705897840751,-457.5024889,0.00030137,2]
[312456287,1705897840761,-153.0,0.00030137,2]
[312456288,1705897840771,-434.3626415,0.00030137,2]
[312456289,1705897840781,-153.0,0.00030137,2]
[312456290,1705897840791,-199.1966855,0.00030137,2]
[312456291,1705897840800,-153.0,0.00030137,2]
[312456292,1705897840810,-153.0,0.00030137,2]
[312456293,1705897840819,-153.0,0.00030137,2]
[312456294,1705897840828,-153.0,0.00030137,2]
[312456295,1705897840837,-199.1966855,0.00030137,2]
[312456296,1705897840846,-199.0366553,0.00030137,2]
[312456297,1705897840855,-363.7718519,0.00030137,2]
[312456298,1705897840864,-153.7874584,0.00030137,2]
[312456299,1705897840873,-153.2723934,0.00030137,2]
[312456300,1705897840882,-153.0,0.00030137,2]
[312456301,1705897840890,-157.894736,0.00030137,2]
[312456302,1705897840900,-400.0,0.00030137,2]
[312456303,1705897840909,-155.0,0.00030137,2]
[312456304,1705897840918,-157.25543227,0.00030289,7]
[312456305,1705897840927,-172.373955,0.00030308,2]
[312456306,1705897840936,-151.0,0.00030373,2]
[312456307,1705897840945,-1500.0,0.000305,2]
[312456308,1705897840954,-445.675978,0.00030528,2]
[312456309,1705897840965,-620.02682492,0.00030561,2]
[312456310,1705897840975,-157.894736,0.00030746,2]
[312456311,1705897840985,-620.00021558,0.00030838,2]
[312456312,1705897840996,-151.0,0.00030954,2]
[312456313,1705897841006,-154.86062544,0.00031,4]
[312456314,1705897841016,-161.24704574,0.00031,4]
[312456315,1705897841026,-2030.0,0.000312,2]
[312456316,1705897841036,-157.894736,0.00031355,2]
[312456317,1705897841045,-445.675978,0.00031409,2]
[312456318,1705897841054,-358.087998,0.00031499,2]
[312456319,1705897841063,-358.087998,0.00031499,2]
[312456320,1705897841072,-358.087998,0.00031499,2]
[312456321,1705897841081,-358.087998,0.00031499,2]
[312456322,1705897841090,-195.31729383,0.000315,7]
[312456323,1705897841098,-441.27403028,0.000315,7]
[312456324,1705897841108,-175.0,0.000315,7]
[312456325,1705897841117,-1500.0,0.000315,2]
[312456326,1705897841126,-539.542437,0.000315,3]
[312456327,1705897841135,-9937.32867111,0.000315,7]
[312456328,1705897841145,-576.0,0.000315,2]
[312456329,1705897841154,-246.83533681,0.00031507,2]
[312456330,1705897841163,-157.25543227,0.0003152,7]
[312456331,1705897841173,-151.0,0.00031535,2]
[312456332,1705897841182,-1000.0,0.00031639,2]
[312456333,1705897841191,-1000.0,0.00031643,2]
[312456334,1705897841200,-150.88329784,0.00031691,7]
[312456335,1705897841210,-988.18234493,0.00031699,2]
[312456336,1705897841219,-1000.0,0.00031716,2]
[312456337,1705897841229,-1000.0,0.00031721,2]
[312456338,1705897841239,-1000.0,0.00031723,2]
[312456339,1705897841249,-1000.0,0.00031726,2]
[312456340,1705897841258,-1000.0,0.00031732,2]
[312456341,1705897841267,-1000.0,0.00031733,2]
[312456342,1705897841277,-1000.0,0.00031742,2]
[312456343,1705897841286,-300.40206867,0.00031749,2]
[312456344,1705897841295,-150.88329784,0.00031775,7]
[312456345,1705897841304,-415.12770445,0.000318,2]
[312456346,1705897841314,-1000.0,0.00031814,2]
[312456347,1705897841323,-1000.0,0.00031821,2]
[312456348,1705897841332,-172.373955,0.00031849,2]
[312456349,1705897841341,-988.18234493,0.00031862,2]
[312456350,1705897841351,-1000.0,0.00031882,2]
[312456351,1705897841360,-608.50760569,0.0003189,2]
[312456352,1705897841370,-584.87229555,0.00031894,2]
[312456353,1705897841379,-798.0420136,0.00031941,2]
[312456354,1705897841388,-1000.0,0.0003195,2]
[312456355,1705897841397,-157.894736,0.00031963,2]
[312456356,1705897841407,-1816.48615871,0.00031998,4]
[312456357,1705897841416,-309.98657524,0.00031998,4]
[312456358,1705897841425,-358.0182755,0.00031998,4]
[312456359,1705897841434,-500.0,0.00031999,4]
[312456360,1705897841443,-500.0,0.00031999,4]
[312456361,1705897841452,-500.0,0.00031999,4]
[312456362,1705897841461,-500.0,0.00031999,4]
[312456363,1705897841470,-500.0,0.00031999,4]
[312456364,1705897841479,-412.23443416,0.00031999,4]
[312456365,1705897841488,-500.0,0.00031999,4]
[312456366,1705897841499,-500.0,0.00031999,4]
[312456367,1705897841508,-337.20497416,0.00031999,4]
[312456368,1705897841517,-500.0,0.00031999,4]
[312456369,1705897841526,-500.0,0.00031999,4]
[312456370,1705897841535,-500.0,0.00031999,4]
[312456371,1705897841544,-500.0,0.00031999,4]
[312456372,1705897841553,-500.0,0.00031999,4]
[312456373,1705897841562,-610.95447772,0.00031999,4]
[312456374,1705897841571,-500.0,0.00031999,4]
[312456375,1705897841581,-500.0,0.00031999,4]
[312456376,1705897841590,-500.0,0.00031999,4]
[312456377,1705897841600,-500.0,0.00031999,4]
[312456378,1705897841610,-500.0,0.00031999,4]
[312456379,1705897841619,-500.0,0.00031999,4]
[312456380,1705897841629,-639.59522941,0.00031999,4]
[312456381,1705897841638,-500.0,0.00031999,4]
[312456382,1705897841647,-500.0,0.00031999,4]
[312456383,1705897841656,-500.0,0.00031999,4]
[312456384,1705897841666,-500.0,0.00031999,4]
[312456385,1705897841676,-500.0,0.00031999,4]
[312456386,1705897841690,-500.0,0.00031999,4]
[312456387,1705897841699,-500.0,0.00031999,4]
[312456388,1705897841708,-500.0,0.00031999,4]
[312456389,1705897841717,-500.0,0.00031999,4]
[312456390,1705897841726,-500.0,0.00031999,4]
[312456391,1705897841735,-500.0,0.00031999,4]
[312456392,1705897841747,-500.0,0.00031999,4]
[312456393,1705897841757,-500.0,0.00031999,4]
[312456394,1705897841766,-500.0,0.00031999,4]
[312456395,1705897841774,-500.0,0.00031999,4]
[312456396,1705897841784,-500.0,0.00031999,4]
[312456397,1705897841793,-500.0,0.00031999,4]
[312456398,1705897841802,-500.0,0.00031999,4]
[312456399,1705897841812,-155.98831148,0.00031999,4]
[312456400,1705897841821,-500.0,0.00031999,4]
[312456401,1705897841831,-42858.06565023,0.00032,4]
[312456402,1705897841840,-155.22821769,0.00032,4]
[312456403,1705897841849,-55378.27530968,0.00032,15]
[312456404,1705897841858,-59661.31838736,0.00032,10]
[312456405,1705897841868,-3135.32384806,0.00032,2]
[312456406,1705897841877,-501.27759151,0.00032,2]
[312456407,1705897841887,-1001.0,0.00032,3]
[312456408,1705897841896,-1400.0,0.00032,2]
[312456409,1705897841906,-358.087998,0.00032,2]
[312456410,1705897841915,-358.087998,0.00032,2]
[312456411,1705897841923,-358.087998,0.00032,2]
[312456412,1705897841932,-358.087998,0.00032,2]
[312456413,1705897841942,-503.870832,0.00032,3]
[312456414,1705897841951,-150.244211,0.00032,2]
[312456415,1705897841961,-566.094,0.00032,2]
[312456416,1705897841971,-160.0,0.00032069,3]
[312456417,1705897841981,-620.00134125,0.00032089,2]
[312456418,1705897841992,-151.0,0.00032115,2]
[312456419,1705897842001,-150.88329784,0.00032132,7]
[312456420,1705897842010,-445.675978,0.0003229,2]
[312456421,1705897842020,-160.0,0.00032332,4]
[312456422,1705897842030,-153.428875,0.00032465,2]
[312456423,1705897842039,-163.559534,0.00032465,2]
[312456424,1705897842048,-420.362867,0.00032465,2]
[312456425,1705897842057,-493.847026,0.00032465,2]
[312456426,1705897842066,-165.526792,0.00032465,2]
[312456427,1705897842075,-162.722272,0.00032465,2]
[312456428,1705897842084,-230.143311,0.00032465,2]
[312456429,1705897842093,-179.319921,0.00032465,2]
[312456430,1705897842102,-480.568907,0.00032465,2]
[312456431,1705897842112,-357.823497,0.00032465,2]
[312456432,1705897842120,-738.986606,0.00032465,2]
[312456433,1705897842130,-420.695318,0.00032465,2]
[312456434,1705897842139,-253.46126,0.00032465,2]
[312456435,1705897842148,-160.098045,0.00032465,2]
[312456436,1705897842157,-357.823497,0.00032465,2]
[312456437,1705897842166,-624.024844,0.00032465,2]
[312456438,1705897842175,-247.767864,0.00032465,2]
[312456439,1705897842184,-156.807514,0.00032465,2]
[312456440,1705897842194,-150.0,0.00032497,2]
[312456441,1705897842203,-49066.11011515,0.000325,20]
[312456442,1705897842212,-358.087998,0.000325,2]
[312456443,1705897842221,-358.087998,0.000325,2]
[312456444,1705897842230,-10000.0,0.000325,2]
[312456445,1705897842240,-10000.0,0.000325,2]
[312456446,1705897842249,-10000.0,0.000325,2]
[312456447,1705897842258,-10000.0,0.000325,2]
[312456448,1705897842267,-10000.0,0.000325,2]
[312456449,1705897842277,-10000.0,0.000325,2]
[312456450,1705897842286,-10000.0,0.000325,2]
[312456451,1705897842295,-157.894736,0.00032572,2]
[312456452,1705897842304,-160.0,0.00032596,5]
[312456453,1705897842313,-151.0,0.00032696,2]
[312456454,1705897842322,-150.0,0.00032731,4]
[312456455,1705897842332,-222.42222138,0.00032731,4]
[312456456,1705897842341,-160.0,0.00032859,6]
[312456457,1705897842350,-420.362867,0.0003287,2]
[312456458,1705897842359,-493.847026,0.0003287,2]
[312456459,1705897842369,-480.568907,0.0003287,2]
[312456460,1705897842378,-357.823497,0.0003287,2]
[312456461,1705897842388,-738.986606,0.0003287,2]
[312456462,1705897842397,-420.695318,0.0003287,2]
[312456463,1705897842407,-357.823497,0.0003287,2]
[312456464,1705897842415,-624.024844,0.0003287,2]
[312456465,1705897842425,-247.767864,0.0003287,2]
[312456466,1705897842434,-250.0,0.00032876,7]
[312456467,1705897842443,-500.0,0.00032876,7]
[312456468,1705897842453,-227.40830268,0.00032876,7]
[312456469,1705897842461,-500.0,0.00032876,7]
[312456470,1705897842470,-500.0,0.00032876,7]
[312456471,1705897842479,-285.28113168,0.00032876,7]
[312456472,1705897842488,-500.0,0.00032876,7]
[312456473,1705897842498,-500.0,0.00032876,7]
[312456475,1705897842507,-500.0,0.00032876,7]
[312456477,1705897842517,-390.87795537,0.00032876,7]
[312456479,1705897842526,-554.45288623,0.00032876,7]
[312456481,1705897842535,-500.0,0.00032876,7]
[312456483,1705897842544,-500.0,0.00032876,7]
[312456484,1705897842553,-500.0,0.00032876,7]
[312456485,1705897842562,-500.0,0.00032876,7]
[312456486,1705897842571,-500.0,0.00032876,7]
[312456487,1705897842580,-500.0,0.00032876,7]
[312456488,1705897842589,-500.0,0.00032876,7]
[312456489,1705897842598,-500.0,0.00032876,7]
[312456490,1705897842607,-534.59919005,0.00032876,7]
[312456491,1705897842616,-500.0,0.00032876,7]
[312456492,1705897842626,-500.0,0.00032877,4]
[312456493,1705897842635,-500.0,0.00032877,4]
[312456494,1705897842644,-500.0,0.00032877,4]
[312456495,1705897842653,-500.0,0.00032877,4]
[312456496,1705897842662,-500.0,0.00032877,4]
[312456497,1705897842672,-500.0,0.00032877,4]
[312456498,1705897842683,-500.0,0.00032877,4]
[312456499,1705897842692,-500.0,0.00032877,4]
[312456500,1705897842704,-500.0,0.00032877,4]
[312456501,1705897842714,-500.0,0.00032877,4]
[312456502,1705897842724,-176.13394,0.00032877,2]
[312456503,1705897842733,-176.13394,0.00032877,61]
[312456505,1705897842743,-176.13394,0.00032877,120]
[312456506,1705897842752,-684.56779977,0.00032877,2]
[312456508,1705897842761,-1630.19999999,0.00032899,3]
[312456510,1705897842771,-150.88329784,0.00032924,7]
[312456511,1705897842780,-150.88329784,0.00032926,7]
[312456512,1705897842790,-2026.82252439,0.00033,2]
[312456514,1705897842799,-689.60443323,0.00033,3]
[312456515,1705897842809,-318.0,0.00033,120]
[312456517,1705897842817,-922.9873896,0.00033,2]
[312456519,1705897842827,-154.73694719,0.00033,4]
[312456521,1705897842835,-500.0,0.00033,3]
[312456523,1705897842844,-183.0,0.00033,2]
[312456524,1705897842853,-183.0,0.00033,2]
[312456526,1705897842862,-162.722272,0.00033006,2]
[312456527,1705897842871,-179.319921,0.00033006,2]
[312456529,1705897842880,-156.807514,0.00033006,2]
[312456531,1705897842890,-152.22977517,0.00033037,7]
[312456533,1705897842899,-160.0,0.00033122,7]
[312456534,1705897842908,-150.88329784,0.00033129,7]
[312456535,1705897842917,-445.675978,0.0003317,2]
[312456536,1705897842926,-157.894736,0.00033181,2]
[312456537,1705897842935,-151.0,0.00033276,2]
[312456538,1705897842944,-420.362867,0.00033276,2]
[312456539,1705897842953,-493.847026,0.00033276,2]
[312456540,1705897842963,-357.823497,0.00033276,2]
[312456541,1705897842972,-480.568907,0.00033276,2]
[312456542,1705897842981,-738.986606,0.00033276,2]
[312456543,1705897842993,-420.695318,0.00033276,2]
[312456544,1705897843002,-357.823497,0.00033276,2]
[312456545,1705897843011,-624.024844,0.00033276,2]
[312456546,1705897843021,-247.767864,0.00033276,2]
[312456547,1705897843030,-1611.97392137,0.00033333,2]
[312456548,1705897843039,-160.0,0.00033385,8]
[312456549,1705897843048,-172.373955,0.0003339,2]
[312456551,1705897843057,-150.84915085,0.00033423,2]
[312456553,1705897843066,-250.24063936,0.00033423,2]
[312456555,1705897843075,-150.88329784,0.00033495,7]
[312456557,1705897843084,-162.722272,0.00033547,2]
[312456559,1705897843094,-179.319921,0.00033547,2]
[312456561,1705897843103,-156.807514,0.00033547,2]
[312456562,1705897843112,-160.0,0.00033649,9]
[312456564,1705897843121,-420.362867,0.00033682,2]
[312456565,1705897843130,-493.847026,0.00033682,2]
[312456566,1705897843140,-357.823497,0.00033682,2]
[312456567,1705897843149,-480.568907,0.00033682,2]
[312456569,1705897843158,-738.986606,0.00033682,2]
[312456574,1705897843268,-420.695318,0.00033682,2]
[312456575,1705897843278,-357.823497,0.00033682,2]
[312456576,1705897843287,-624.024844,0.00033682,2]
[312456577,1705897843297,-247.767864,0.00033682,2]
[312456578,1705897843306,-620.00006706,0.00033694,2]
[312456579,1705897843316,-157.894736,0.0003379,2]
[312456580,1705897843326,-151.0,0.00033857,2]
[312456581,1705897843337,-160.0,0.00033912,10]
[312456582,1705897843346,-157.776793,0.00033916,7]
[312456583,1705897843355,-301.6983017,0.00033985,4]
[312456584,1705897843365,-25177.14367041,0.00034,2]
[312456585,1705897843374,-2957.47183504,0.00034,3]
[312456586,1705897843384,-200.30469445,0.00034,2]
[312456587,1705897843393,-500.0,0.00034,3]
[312456588,1705897843402,-445.675978,0.00034051,2]
[312456589,1705897843412,-160.098045,0.00034088,2]
[312456590,1705897843420,-420.362867,0.00034088,2]
[312456591,1705897843429,-493.847026,0.00034088,2]
[312456592,1705897843438,-162.722272,0.00034088,2]
[312456593,1705897843447,-179.319921,0.00034088,2]
[312456594,1705897843456,-357.823497,0.00034088,2]
[312456595,1705897843465,-480.568907,0.00034088,2]
[312456596,1705897843474,-738.986606,0.00034088,2]
[312456597,1705897843483,-420.695318,0.00034088,2]
[312456598,1705897843493,-357.823497,0.00034088,2]
[312456599,1705897843502,-624.024844,0.00034088,2]
[312456600,1705897843511,-247.767864,0.00034088,2]
[312456601,1705897843519,-156.807514,0.00034088,2]
[312456602,1705897843528,-160.0,0.00034175,11]
[312456603,1705897843538,-500.0,0.00034246,7]
[312456604,1705897843547,-157.894736,0.00034399,2]
[312456605,1705897843557,-875.56650803,0.00034399,2]
[312456606,1705897843566,-151.0,0.00034438,2]
[312456607,1705897843576,-160.0,0.00034438,12]
[312456608,1705897843585,-603.3966034,0.00034556,7]
[312456609,1705897843594,-160.0,0.00034702,13]
[312456610,1705897843603,-358.087998,0.00034932,2]
[312456611,1705897843613,-358.087998,0.00034932,2]
[312456612,1705897843622,-172.373955,0.00034932,2]
[312456613,1705897843631,-445.675978,0.00034932,2]
[312456614,1705897843640,-160.0,0.00034965,14]
[312456615,1705897843649,-500.0,0.00034999,7]
[312456616,1705897843658,-500.0,0.00034999,7]
[312456617,1705897843667,-247.3406605,0.00034999,7]
[312456618,1705897843677,-500.0,0.00034999,7]
[312456619,1705897843688,-500.0,0.00034999,7]
[312456620,1705897843697,-500.0,0.00034999,7]
[312456621,1705897843708,-500.0,0.00034999,7]
[312456622,1705897843718,-500.0,0.00034999,7]
[312456623,1705897843728,-604.69642206,0.00034999,7]
[312456624,1705897843737,-500.0,0.00034999,7]
[312456625,1705897843749,-500.0,0.00034999,7]
[312456626,1705897843758,-377.90373062,0.00034999,7]
[312456627,1705897843769,-500.0,0.00034999,7]
[312456628,1705897843779,-500.0,0.00034999,7]
[312456629,1705897843788,-500.0,0.00034999,7]
[312456630,1705897843799,-500.0,0.00034999,7]
[312456631,1705897843808,-500.0,0.00034999,7]
[312456632,1705897843818,-500.0,0.00034999,7]
[312456633,1705897843827,-500.0,0.00034999,7]
[312456634,1705897843837,-500.0,0.00034999,7]
[312456635,1705897843847,-500.0,0.00034999,7]
[312456636,1705897843856,-500.0,0.00034999,7]
[312456637,1705897843867,-500.0,0.00034999,7]
[312456638,1705897843876,-500.0,0.00034999,7]
[312456639,1705897843886,-500.0,0.00034999,7]
[312456640,1705897843896,-500.0,0.00034999,7]
[312456641,1705897843906,-500.0,0.00034999,7]
[312456642,1705897843915,-491.99123361,0.00034999,7]
[312456643,1705897843925,-500.0,0.00034999,7]
[312456644,1705897843934,-500.0,0.00034999,7]
[312456645,1705897843943,-251.55793814,0.00035,2]
[312456646,1705897843952,-591.88726683,0.00035,2]
[312456647,1705897843961,-154.73694719,0.00035,6]
[312456648,1705897843970,-2085.08363542,0.00035,4]
[312456649,1705897843979,-154.73694719,0.00035,4]
[312456650,1705897843988,-333.12649891,0.00035,4]
[312456651,1705897843998,-1070.0,0.00035,2]
[312456652,1705897844007,-500.0,0.00035,10]
[312456653,1705897844018,-1116.56310838,0.00035,7]
[312456654,1705897844027,-502.05217821,0.00035,7]
[312456655,1705897844036,-20000.0,0.00035,10]
[312456656,1705897844046,-873.63783337,0.00035,5]
[312456657,1705897844055,-850.90443506,0.00035,14]
[312456658,1705897844064,-48674.37428925,0.00035,2]
[312456659,1705897844074,-9128.8049656,0.00035,2]
[312456660,1705897844083,-563.96667123,0.00035,2]
[312456661,1705897844092,-973.12581789,0.00035,7]
[312456662,1705897844102,-1009.84,0.00035,4]
[312456663,1705897844111,-939.20081235,0.00035,3]
[312456664,1705897844120,-156.50817888,0.00035,2]
[312456665,1705897844130,-10000.0,0.00035,15]
[312456666,1705897844139,-358.087998,0.00035,2]
[312456667,1705897844148,-358.087998,0.00035,2]
[312456668,1705897844157,-357.383015,0.00035,2]
[312456669,1705897844166,-357.383015,0.00035,2]
[312456670,1705897844175,-357.383015,0.00035,2]
[312456671,1705897844185,-357.383015,0.00035,2]
[312456672,1705897844193,-151.843705,0.00035,2]
[312456673,1705897844203,-500.0,0.00035,2]
[312456674,1705897844211,-500.0,0.00035,2]
[312456675,1705897844221,-166.0,0.00035,2]
[312456676,1705897844230,-201.81838364,0.00035,2]
[312456677,1705897844240,-500.0,0.00035,3]
[312456678,1705897844248,-201.81838364,0.00035,2]
[312456679,1705897844258,-170.0,0.00035,2]
[312456680,1705897844267,-10000.0,0.00035,2]
[312456681,1705897844277,-10000.0,0.00035,2]
[312456682,1705897844286,-10000.0,0.00035,2]
[312456683,1705897844295,-10000.0,0.00035,2]
[312456684,1705897844305,-10000.0,0.00035,2]
[312456685,1705897844314,-10000.0,0.00035,2]
[312456686,1705897844323,-8203.491435,0.00035,2]
[312456687,1705897844333,-3288.33430173,0.00035,2]
[312456688,1705897844342,-157.894736,0.00035008,2]
[312456689,1705897844351,-151.0,0.00035018,4]
[312456690,1705897844361,-166.82709291,0.00035137,4]
[312456691,1705897844370,-160.0,0.00035228,15]
[312456692,1705897844379,-150.88329784,0.00035265,7]
[312456693,1705897844388,-1206.79320679,0.00035431,30]
[312456694,1705897844397,-160.0,0.00035492,16]
[312456695,1705897844407,-30195.97514698,0.000355,14]
[312456696,1705897844416,-316.871441,0.000355,2]
[312456697,1705897844425,-316.871441,0.000355,2]
[312456698,1705897844434,-151.0,0.000355,2]
[312456699,1705897844443,-151.0,0.000355,2]
[312456700,1705897844451,-598.464061,0.000355,2]
[312456701,1705897844460,-598.464061,0.000355,2]
[312456702,1705897844470,-151.0,0.00035599,4]
[312456703,1705897844479,-507.03238,0.00035616,7]
[312456704,1705897844488,-157.894736,0.00035616,2]
[312456705,1705897844499,-234.288969,0.00035616,120]
[312456706,1705897844508,-150.88329784,0.00035623,7]
[312456707,1705897844518,-201.81838364,0.000357,2]
[312456708,1705897844527,-201.81838364,0.000357,2]
[312456709,1705897844536,-160.0,0.00035755,17]
[312456710,1705897844545,-445.675978,0.00035812,2]
[312456711,1705897844555,-50000.0,0.00035988,7]
[312456712,1705897844564,-311.35321621,0.00036,30]
[312456713,1705897844573,-10000.0,0.00036,5]
[312456714,1705897844582,-2500.0,0.00036,21]
[312456715,1705897844592,-1008.46,0.00036,6]
[312456716,1705897844601,-183.0,0.00036,2]
[312456717,1705897844611,-183.0,0.00036,2]
[312456718,1705897844621,-160.0,0.00036018,18]
[312456719,1705897844630,-500.0,0.000361,2]
[312456720,1705897844640,-151.0,0.00036179,4]
[312456721,1705897844649,-157.894736,0.00036225,2]
[312456722,1705897844658,-150.88329784,0.00036257,7]
[312456723,1705897844667,-160.0,0.00036281,19]
[312456724,1705897844677,-170.0,0.00036383,2]
[312456725,1705897844687,-201.81838364,0.000364,2]
[312456726,1705897844696,-201.81838364,0.000364,2]
[312456727,1705897844708,-150.88329784,0.00036457,7]
[312456728,1705897844718,-172.373955,0.00036473,2]
[312456729,1705897844727,-160.0,0.00036545,20]
[312456730,1705897844737,-150.88329784,0.00036579,7]
[312456731,1705897844748,-445.675978,0.00036693,2]
[312456732,1705897844758,-151.0,0.0003676,4]
[312456733,1705897844768,-600.0,0.000368,7]